bitfinex/quotes_BTCUSD_20230404
["timestamp","ask_amount","ask_price","bid_price","bid_amount"]
[1680644650437,0.20054303,28180.0,28179.0,0.048469]
[1680644650676,0.29252727,28180.0,28179.0,0.32229416]
[1680644650868,0.23716427,28180.0,28179.0,0.32221757]
[1680644651125,0.23716427,28180.0,28179.0,0.36483241]
[1680644651126,0.24016427,28180.0,28179.0,0.36483241]
[1680644651354,0.23716427,28180.0,28179.0,0.30628661]
[1680644651587,0.24116427,28180.0,28179.0,0.34886341]
[1680644651809,0.24116427,28180.0,28179.0,0.56152111]
[1680644652304,0.24116427,28180.0,28179.0,0.34886341]
[1680644652537,0.23716427,28180.0,28179.0,0.36483241]
[1680644652771,0.24116427,28180.0,28179.0,0.4073467]
[1680644653026,0.24074303,28180.0,28179.0,0.25368403]
[1680644653251,0.24074303,28180.0,28179.0,0.3988467]
[1680644653700,0.24074303,28180.0,28179.0,0.186369]
[1680644653919,0.23674303,28180.0,28179.0,0.186369]
[1680644654137,0.23674303,28180.0,28179.0,0.189369]
[1680644654357,0.23674303,28180.0,28179.0,0.186369]
[1680644655049,0.23674303,28180.0,28179.0,0.194869]
[1680644655691,0.23774303,28180.0,28179.0,0.202869]
[1680644655923,0.23674303,28180.0,28179.0,0.194869]
[1680644656084,0.23674303,28180.0,28179.0,0.197869]
[1680644656308,0.23674303,28180.0,28179.0,0.194869]
[1680644656508,0.23774303,28180.0,28179.0,0.202869]
[1680644656945,0.23674303,28180.0,28179.0,0.237469]
[1680644657147,0.23674303,28180.0,28179.0,0.240469]
[1680644657358,0.23674303,28180.0,28179.0,0.237469]
[1680644657536,0.23774303,28180.0,28179.0,0.245469]
[1680644658460,0.23674303,28180.0,28179.0,0.237469]
[1680644658714,0.23674303,28180.0,28179.0,0.240469]
[1680644658947,0.23674303,28180.0,28179.0,0.237469]
[1680644659306,0.23774303,28180.0,28179.0,0.245469]
[1680644660433,0.23774303,28180.0,28179.0,0.45807841]
[1680644666421,0.09774303,28180.0,28179.0,0.45807841]
[1680644666631,0.09774303,28180.0,28179.0,0.45789841]
[1680644666844,0.09774303,28180.0,28179.0,0.45807841]
[1680644668788,0.09774303,28180.0,28179.0,0.44957841]
[1680644670781,0.09774303,28180.0,28179.0,0.43360941]
[1680644671000,0.09934303,28180.0,28179.0,0.42560941]
[1680644671216,0.09934303,28180.0,28179.0,0.42860941]
[1680644672267,0.23934303,28180.0,28179.0,0.42560941]
[1680644672673,0.23934303,28180.0,28179.0,0.42860941]
[1680644674029,0.23934303,28180.0,28179.0,0.59869092]
[1680644675156,0.23934303,28180.0,28179.0,0.59569092]
[1680644675375,0.24334303,28180.0,28179.0,0.59569092]
[1680644676720,0.24334303,28180.0,28179.0,0.42560941]
[1680644677348,0.24324542,28180.0,28179.0,0.42560941]
[1680644678076,0.23924542,28180.0,28179.0,0.42560941]
[1680644678296,0.24324542,28180.0,28179.0,0.42560941]
[1680644680484,0.26035177,28180.0,28179.0,0.42560941]
[1680644681378,0.26035177,28180.0,28179.0,0.44157841]
[1680644685764,0.26035177,28180.0,28179.0,0.47351641]
[1680644687093,0.26035177,28180.0,28179.0,0.47351565]
[1680644689996,0.26077301,28180.0,28179.0,0.47333565]
[1680644690459,0.26035177,28180.0,28179.0,0.47351565]
[1680644691402,0.26035177,28180.0,28179.0,0.260907]
[1680644699220,0.26024196,28180.0,28179.0,0.260907]
[1680644701876,0.26024196,28180.0,28179.0,0.228969]
[1680644702106,0.26024196,28180.0,28179.0,0.228909]
[1680644703472,0.22144196,28180.0,28179.0,0.48401527]
[1680644703743,0.22144196,28180.0,28179.0,0.48389527]
[1680644703964,0.22144196,28180.0,28179.0,0.49239527]
[1680644704396,0.22144196,28180.0,28179.0,0.2927056]
[1680644704615,0.144,28180.0,28179.0,0.2927056]
[1680644704843,0.14,28180.0,28179.0,0.2927056]
[1680644705058,0.14,28180.0,28179.0,0.3007056]
[1680644705059,0.143,28180.0,28179.0,0.3007056]
[1680644705277,0.14,28180.0,28179.0,0.2927056]
[1680644705497,0.143,28180.0,28179.0,0.3007056]
[1680644709105,0.143,28180.0,28179.0,1.48163174]
[1680644709331,0.04954664,28185.0,28183.0,0.3727]
[1680644709555,0.0491254,28185.0,28184.0,1.00059669]
[1680644709779,0.02299,28186.0,28184.0,0.915815]
[1680644710034,0.02299,28186.0,28185.0,0.33053977]
[1680644710286,0.02299,28186.0,28185.0,0.73044539]
[1680644710508,0.02299,28186.0,28185.0,1.12714539]
[1680644710735,0.02299,28186.0,28185.0,1.12978539]
[1680644710954,0.02299,28186.0,28185.0,1.12714539]
[1680644711178,0.02299,28186.0,28185.0,0.87220562]
[1680644711386,0.02299,28186.0,28185.0,1.07541796]
[1680644711636,0.02299,28186.0,28185.0,1.10605796]
[1680644711853,0.02299,28186.0,28185.0,0.90284562]
[1680644712073,0.02299,28186.0,28185.0,0.90020562]
[1680644712528,0.02299,28186.0,28185.0,0.90284562]
[1680644712751,0.02299,28186.0,28185.0,0.90020562]
[1680644712973,0.02299,28186.0,28185.0,1.32055402]
[1680644713190,0.02299,28186.0,28185.0,1.54655402]
[1680644713623,0.02299,28186.0,28185.0,2.10167379]
[1680644713842,0.02299,28186.0,28185.0,2.07367379]
[1680644714072,0.02299,28186.0,28185.0,1.90213199]
[1680644714512,0.02299,28186.0,28185.0,2.02523199]
[1680644714740,0.02299,28186.0,28185.0,2.05323199]
[1680644714955,0.02299,28186.0,28185.0,2.02523199]
[1680644715180,0.02299,28186.0,28185.0,2.05323199]
[1680644715401,0.02299,28186.0,28185.0,2.25210426]
[1680644715618,0.02299,28186.0,28185.0,2.22410426]
[1680644715835,0.02299,28186.0,28185.0,2.25210426]
[1680644717002,0.02299,28186.0,28185.0,2.22404426]
[1680644717231,0.02299,28186.0,28185.0,1.99777402]
[1680644717457,0.16299,28186.0,28185.0,1.99777402]
[1680644717913,0.16299,28186.0,28185.0,2.25204426]
[1680644719049,0.16299,28186.0,28185.0,2.05316602]
[1680644719238,0.02299,28186.0,28185.0,2.05316602]
[1680644721004,0.02299,28186.0,28185.0,2.02516602]
[1680644721240,0.02299,28186.0,28185.0,2.25151255]
[1680644722958,0.02299,28186.0,28185.0,2.30690411]
[1680644723365,0.02299,28186.0,28185.0,1.99759402]
[1680644723576,0.02299,28186.0,28185.0,2.25133255]
[1680644724009,0.02299,28186.0,28185.0,2.25151255]
[1680644724252,0.02299,28186.0,28185.0,1.98927402]
[1680644724698,0.02299,28186.0,28185.0,1.83927402]
[1680644724928,0.02299,28186.0,28185.0,2.09301255]
[1680644725151,0.02299,28186.0,28185.0,1.83927402]
[1680644725736,0.02299,28186.0,28185.0,1.81127402]
[1680644725950,0.02299,28186.0,28185.0,1.84777402]
[1680644726338,0.02299,28186.0,28185.0,1.69657402]
[1680644730687,0.02299,28186.0,28185.0,1.75196539]
[1680644730902,0.02289907,28186.0,28185.0,1.75048539]
[1680644731333,0.02289907,28186.0,28185.0,1.69509402]
[1680644731561,0.02289907,28186.0,28185.0,1.75048528]
[1680644734143,0.02289907,28186.0,28185.0,2.01321302]
[1680644734591,0.02289907,28186.0,28185.0,1.99550462]
[1680644737671,0.02289907,28186.0,28185.0,1.9205525]
[1680644738124,0.02289907,28186.0,28185.0,1.66706609]
[1680644738788,0.02289907,28186.0,28185.0,1.92055165]
[1680644739275,9.07e-06,28186.0,28185.0,1.66706609]
[1680644739957,9.07e-06,28186.0,28185.0,1.59156609]
[1680644745430,9.07e-06,28186.0,28185.0,1.96800343]
[1680644745641,9.07e-06,28186.0,28185.0,1.96171183]
[1680644748462,9.07e-06,28186.0,28185.0,1.58527449]
[1680644753350,9.07e-06,28186.0,28185.0,1.56756609]
[1680644754044,9.07e-06,28186.0,28185.0,1.74492609]
[1680644759187,9.07e-06,28186.0,28185.0,2.02982403]
[1680644760042,9.07e-06,28186.0,28185.0,1.74492609]
[1680644761609,0.02299,28188.0,28187.0,1.4727]
[1680644761906,0.02299,28188.0,28187.0,2.371896]
[1680644762122,0.02299,28188.0,28187.0,2.77474726]
[1680644762337,0.02299,28188.0,28187.0,2.77738726]
[1680644763123,0.02299,28188.0,28187.0,3.06419331]
[1680644763315,0.02299,28188.0,28187.0,3.09219331]
[1680644763547,0.02299,28188.0,28187.0,3.08955331]
[1680644764213,0.02299,28188.0,28187.0,2.80274726]
[1680644764464,0.02299,28188.0,28187.0,3.08955331]
[1680644764669,0.02299,28188.0,28187.0,3.09219331]
[1680644764900,0.02299,28188.0,28187.0,3.08955331]
[1680644765539,0.02299,28188.0,28187.0,2.80274726]
[1680644766013,0.02299,28188.0,28187.0,2.80538726]
[1680644769529,0.02299,28188.0,28187.0,1.70538726]
[1680644769736,0.02299,28188.0,28187.0,1.52802726]
[1680644770382,0.02299,28188.0,28187.0,1.70538726]
[1680644770600,0.02299,28188.0,28187.0,1.73818726]
[1680644771046,0.02299,28188.0,28187.0,2.83818726]
[1680644772533,0.02299,28188.0,28187.0,3.12499331]
[1680644773000,0.02299,28188.0,28187.0,2.26379331]
[1680644773205,0.02299,28188.0,28186.0,5.194e-05]
[1680644773206,0.04299,28188.0,28186.0,5.194e-05]
[1680644773448,0.02299,28188.0,28187.0,0.58243382]
[1680644773661,0.10425147,28188.0,28187.0,0.11436282]
[1680644773880,0.10425147,28188.0,28187.0,0.08116203]
[1680644774101,0.10425147,28188.0,28187.0,0.17536]
[1680644774314,0.10467271,28188.0,28187.0,0.189324]
[1680644774530,0.10467271,28188.0,28187.0,0.191324]
[1680644774795,0.10767271,28188.0,28187.0,0.191324]
[1680644775006,0.10467271,28188.0,28187.0,0.191324]
[1680644775220,0.10667271,28188.0,28187.0,0.200324]
[1680644775432,0.10467271,28188.0,28187.0,0.191324]
[1680644775645,0.10567271,28188.0,28187.0,0.200324]
[1680644776537,0.10567271,28188.0,28187.0,0.45517955]
[1680644779168,0.10567271,28188.0,28187.0,0.26514742]
[1680644779169,0.10525147,28188.0,28187.0,0.26514742]
[1680644779356,0.10525147,28188.0,28187.0,0.45127142]
[1680644780746,0.10525147,28188.0,28187.0,0.19641587]
[1680644789484,0.10525147,28188.0,28187.0,0.19631766]
[1680644792931,0.10525147,28188.0,28187.0,0.40840837]
[1680644796016,0.10525147,28188.0,28187.0,0.57806476]
[1680644796530,0.10525147,28188.0,28187.0,0.36597405]
[1680644798297,0.10525147,28188.0,28187.0,0.57806476]
[1680644798720,0.10525147,28188.0,28187.0,0.36597405]
[1680644805011,0.10525147,28188.0,28187.0,0.57806476]
[1680644807270,0.10525147,28188.0,28187.0,0.36597405]
[1680644807477,0.10525147,28188.0,28187.0,0.57806476]
[1680644809500,0.10525147,28188.0,28187.0,0.40840837]
[1680644809722,0.10525147,28188.0,28187.0,0.57813139]
[1680644809946,0.10525147,28188.0,28187.0,0.40840837]
[1680644812099,0.1051909,28188.0,28187.0,0.40840837]
[1680644814084,0.1051909,28188.0,28187.0,0.19631766]
[1680644818553,0.1051909,28188.0,28187.0,0.45117321]
[1680644821169,0.1051909,28188.0,28187.0,0.44417321]
[1680644827650,0.1051909,28188.0,28187.0,0.4995746]
[1680644832393,0.1051909,28188.0,28187.0,0.24471905]
[1680644832651,0.1051909,28188.0,28187.0,0.4998431]
[1680644832863,0.1051909,28188.0,28187.0,0.24471905]
[1680644833642,0.1051909,28188.0,28187.0,0.49985651]
[1680644834691,0.1051909,28188.0,28187.0,0.24471905]
[1680644835561,0.1051909,28188.0,28187.0,0.4998796]
[1680644836625,0.10508917,28188.0,28187.0,0.24471905]
[1680644852343,0.10508917,28188.0,28187.0,0.09288655]
[1680644852566,0.10508917,28188.0,28187.0,0.22556139]
[1680644853342,0.10508917,28188.0,28187.0,0.24152539]
[1680644862693,0.10508917,28188.0,28187.0,0.24582539]
[1680644870985,0.09728917,28188.0,28187.0,0.24582539]
[1680644871427,0.08488917,28188.0,28187.0,0.36154539]
[1680644871644,0.08488917,28188.0,28187.0,0.53170539]
[1680644872115,0.08488917,28188.0,28187.0,0.35432539]
[1680644872337,0.08488917,28188.0,28187.0,0.35450539]
[1680644872552,0.0238277,28188.0,28187.0,0.35450539]
[1680644872777,0.0228277,28188.0,28187.0,0.35450539]
[1680644873004,0.0248277,28188.0,28187.0,0.36450539]
[1680644873882,0.0248277,28188.0,28187.0,0.35450539]
[1680644873883,0.0228277,28188.0,28187.0,0.35450539]
[1680644874120,0.0248277,28188.0,28187.0,0.36450539]
[1680644876121,0.0248277,28188.0,28187.0,0.7409525]
[1680644876339,0.02471593,28188.0,28187.0,0.6407725]
[1680644877467,0.02471593,28188.0,28187.0,0.26432539]
[1680644878540,0.02471593,28188.0,28187.0,0.64069344]
[1680644878966,0.02471593,28188.0,28187.0,0.26432539]
[1680644890881,0.02471593,28188.0,28187.0,0.66450539]
[1680644893905,0.02471593,28188.0,28187.0,0.66432539]
[1680644894317,0.02471593,28188.0,28187.0,0.66450539]
[1680644894659,0.02471593,28188.0,28187.0,0.497148]
[1680644894862,0.02471593,28188.0,28187.0,0.58256]
[1680644895296,0.02471593,28188.0,28187.0,0.598524]
[1680644895963,0.02471593,28188.0,28187.0,0.53353851]
[1680644897009,0.02471593,28188.0,28187.0,0.54203851]
[1680644910085,0.02471593,28188.0,28187.0,0.57396751]
[1680644919268,0.02460403,28188.0,28187.0,0.47396751]
[1680644927651,0.02460403,28188.0,28187.0,0.228953]
[1680644935659,0.02460403,28188.0,28187.0,0.328953]
[1680644938936,0.02460403,28188.0,28187.0,0.228953]
[1680644940456,0.02450893,28188.0,28187.0,0.228953]
[1680644942428,0.02450893,28188.0,28187.0,0.226553]
[1680644943523,0.02450893,28188.0,28187.0,0.22647349]
[1680644943747,0.02450893,28188.0,28187.0,0.326553]
[1680644960954,0.02450893,28188.0,28187.0,0.61335905]
[1680644963719,0.02450893,28188.0,28187.0,0.326553]
[1680644964658,0.02441186,28188.0,28187.0,0.226553]
[1680644967192,0.02441186,28188.0,28187.0,0.227853]
[1680644968420,0.02441186,28188.0,28187.0,0.61480207]
[1680644968673,0.02441186,28188.0,28187.0,0.51480207]
[1680644968888,0.02441186,28188.0,28187.0,0.227853]
[1680644969531,0.02441186,28188.0,28187.0,0.51480207]
[1680644969754,0.02441186,28188.0,28187.0,0.227853]
[1680644984228,0.02441186,28188.0,28187.0,0.17996]
[1680644984438,0.02441186,28188.0,28187.0,0.227853]
[1680644984914,0.02441186,28188.0,28187.0,0.327853]
[1680644987550,0.02441186,28188.0,28187.0,0.319353]
[1680644997300,0.02441186,28188.0,28187.0,0.319353]
[1680644998518,0.02441186,28188.0,28187.0,0.37474287]
[1680644999775,0.02441186,28188.0,28187.0,0.27474287]
[1680645002644,0.02441186,28188.0,28187.0,0.37474287]
[1680645007907,0.02429888,28188.0,28187.0,0.27474287]
[1680645010410,0.02429888,28188.0,28187.0,0.6513095]
[1680645011515,0.02429888,28188.0,28187.0,0.27474287]
[1680645012186,0.02229888,28188.0,28187.0,0.27474287]
[1680645012405,0.02529888,28188.0,28187.0,0.27474287]
[1680645012633,0.07640597,28188.0,28187.0,0.27474287]
[1680645012873,0.07667721,28188.0,28187.0,0.27474287]
[1680645013088,0.07382721,28188.0,28187.0,0.27474287]
[1680645013306,0.07582721,28188.0,28187.0,0.27474287]
[1680645016414,0.07582721,28188.0,28187.0,0.52957032]
[1680645017340,0.07582721,28188.0,28187.0,0.27474287]
[1680645017570,0.07582721,28188.0,28187.0,0.52957047]
[1680645017760,0.07582721,28188.0,28187.0,0.52957306]
[1680645018033,0.07382721,28188.0,28187.0,0.47418319]
[1680645018255,0.07582721,28188.0,28187.0,0.47418319]
[1680645019332,0.07582721,28188.0,28187.0,0.219353]
[1680645019556,0.07582721,28188.0,28187.0,0.27474873]
[1680645020009,0.07382721,28188.0,28187.0,0.52951848]
[1680645020434,0.07382721,28188.0,28187.0,0.47412275]
[1680645021175,0.07582721,28188.0,28187.0,0.47412275]
[1680645022741,0.07582721,28188.0,28187.0,0.219353]
[1680645023904,0.07540597,28188.0,28187.0,0.219353]
[1680645027044,0.07549597,28188.0,28187.0,0.219353]
[1680645027241,0.07582721,28188.0,28187.0,0.52951818]
[1680645027491,0.07582721,28188.0,28187.0,0.27474843]
[1680645028643,0.02429888,28188.0,28187.0,0.27474843]
[1680645030823,0.02429888,28188.0,28187.0,0.10458843]
[1680645031042,0.02429888,28188.0,28187.0,0.75131506]
[1680645031267,0.02429888,28188.0,28187.0,0.65131506]
[1680645031684,0.02229888,28188.0,28187.0,0.65131506]
[1680645031817,0.02429888,28188.0,28187.0,0.67131506]
[1680645032216,0.02229888,28188.0,28187.0,0.65131506]
[1680645032434,0.02219071,28188.0,28187.0,0.65131506]
[1680645032632,0.02219071,28188.0,28187.0,0.27474843]
[1680645033085,0.02419071,28188.0,28187.0,0.29474843]
[1680645034466,0.02419071,28188.0,28187.0,0.30588843]
[1680645034673,0.02419071,28188.0,28187.0,0.30324843]
[1680645035768,0.02419071,28188.0,28187.0,0.30588843]
[1680645035985,0.02419071,28188.0,28187.0,0.30324843]
[1680645042786,0.02299,28189.0,28187.0,2.14786524]
[1680645042787,7.1e-07,28189.0,28187.0,2.14786524]
[1680645043015,0.02299,28192.0,28191.0,0.3727]
[1680645043246,0.02299,28192.0,28191.0,1.66148943]
[1680645043510,0.02299,28192.0,28191.0,1.75358805]
[1680645043734,0.02299,28192.0,28191.0,1.82629645]
[1680645045340,0.02299,28192.0,28191.0,1.85429645]
[1680645046802,0.02299,28192.0,28191.0,2.03163645]
[1680645048294,0.02299,28192.0,28191.0,2.03162645]
[1680645049434,0.02299,28192.0,28191.0,1.68558805]
[1680645049606,0.02299,28192.0,28191.0,3.56082741]
[1680645049768,0.02299,28192.0,28191.0,2.86037741]
[1680645050428,0.02299,28192.0,28191.0,1.36037741]
[1680645051078,0.02299,28192.0,28191.0,0.98513805]
[1680645051954,0.02299,28192.0,28191.0,1.36037741]
[1680645052833,0.02299,28192.0,28191.0,2.86037741]
[1680645053855,0.02299,28192.0,28191.0,2.48513805]
[1680645054248,0.02299,28192.0,28191.0,2.86037741]
[1680645056147,0.02299,28192.0,28191.0,2.48513805]
[1680645058313,0.02299,28192.0,28191.0,2.50812805]
[1680645058960,0.02299,28192.0,28191.0,2.92801257]
[1680645059163,0.02299,28192.0,28191.0,1.12801257]
[1680645059364,0.02299,28192.0,28191.0,1.42801257]
[1680645060391,0.02299,28192.0,28191.0,1.40001257]
[1680645060619,0.02299,28192.0,28191.0,1.42801257]
[1680645062748,0.02299,28192.0,28191.0,1.36275338]
[1680645062960,0.02299,28192.0,28191.0,1.37125338]
[1680645063200,0.02299,28192.0,28191.0,1.72596394]
[1680645063812,0.02299,28192.0,28191.0,1.41746394]
[1680645064574,0.02299,28192.0,28191.0,1.67149408]
[1680645064984,0.02299,28192.0,28191.0,1.41746394]
[1680645065425,0.02299,28192.0,28191.0,1.15724058]
[1680645065847,0.02299,28192.0,28191.0,0.90321361]
[1680645066526,0.02288172,28192.0,28191.0,0.56309576]
[1680645066747,0.02288172,28192.0,28191.0,0.44553835]
[1680645066976,0.02288172,28192.0,28191.0,0.40320557]
[1680645067675,0.0732544,28192.0,28191.0,0.40320557]
[1680645067901,0.07367564,28192.0,28191.0,0.37520557]
[1680645068120,0.07367564,28192.0,28191.0,0.39220557]
[1680645068341,0.07367564,28192.0,28191.0,0.37520557]
[1680645068558,0.07667564,28192.0,28191.0,0.37620557]
[1680645068776,0.07367564,28192.0,28191.0,0.37520557]
[1680645069171,0.07667564,28192.0,28191.0,0.37720557]
[1680645069346,0.07667564,28192.0,28191.0,0.29921557]
[1680645070587,0.44937564,28192.0,28191.0,0.29921557]
[1680645071707,0.44937564,28192.0,28191.0,0.46860392]
[1680645071985,0.44937564,28192.0,28191.0,0.34154835]
[1680645072315,0.44937564,28192.0,28191.0,0.35751035]
[1680645072877,0.44937564,28192.0,28191.0,0.48466123]
[1680645073100,0.07667564,28192.0,28191.0,0.31527288]
[1680645073539,0.07667564,28192.0,28191.0,0.27289042]
[1680645073766,0.07667564,28192.0,28191.0,0.40004005]
[1680645074012,0.07667564,28192.0,28191.0,0.31527288]
[1680645074241,0.07667564,28192.0,28191.0,0.40004942]
[1680645074465,0.07667564,28192.0,28191.0,0.27289824]
[1680645074880,0.07667564,28192.0,28191.0,0.25693624]
[1680645075203,0.07667564,28192.0,28191.0,0.27289824]
[1680645075393,0.07667564,28192.0,28191.0,0.25693624]
[1680645076751,0.07367564,28192.0,28191.0,0.25493624]
[1680645076972,0.07667564,28192.0,28191.0,0.17116]
[1680645077412,0.56518511,28192.0,28191.0,0.17116]
[1680645077627,0.56518511,28192.0,28191.0,0.17016]
[1680645077628,0.56218511,28192.0,28191.0,0.17016]
[1680645077848,0.56518511,28192.0,28191.0,0.17216]
[1680645078065,0.56518511,28192.0,28191.0,0.002]
[1680645078280,0.56518511,28192.0,28191.0,0.17216]
[1680645080137,0.91989567,28192.0,28191.0,0.002]
[1680645080414,1.21989567,28192.0,28191.0,0.002]
[1680645081084,1.21989567,28192.0,28186.0,0.21192712]
[1680645081085,1.21689567,28192.0,28187.0,0.17022]
[1680645081310,0.3727,28190.0,28187.0,0.17022]
[1680645081530,0.3727,28188.0,28187.0,0.17022]
[1680645081753,0.42719924,28188.0,28187.0,0.17022]
[1680645081972,0.37312124,28188.0,28187.0,0.17022]
[1680645083407,0.38712124,28188.0,28187.0,0.17122]
[1680645083856,0.37312124,28188.0,28186.0,0.17022]
[1680645084050,0.39612124,28188.0,28187.0,0.001]
[1680645084387,0.37312124,28188.0,28186.0,0.17022]
[1680645084600,0.38712124,28188.0,28187.0,0.001]
[1680645085261,0.3867,28188.0,28187.0,0.00012]
[1680645085471,0.38712124,28188.0,28186.0,0.17022]
[1680645085794,0.37312124,28188.0,28187.0,0.17022]
[1680645086010,0.39712124,28188.0,28187.0,0.17122]
[1680645086240,0.39712124,28188.0,28187.0,0.17022]
[1680645086241,0.37312124,28188.0,28187.0,0.17022]
[1680645086409,0.39312124,28188.0,28186.0,0.187185]
[1680645086634,0.37312124,28188.0,28187.0,0.17022]
[1680645086874,0.39712124,28188.0,28187.0,0.001]
[1680645087096,0.37312124,28188.0,28186.0,0.17022]
[1680645087295,0.39312124,28188.0,28186.0,0.17122]
[1680645087772,0.37312124,28188.0,28186.0,0.186185]
[1680645088186,0.37312124,28188.0,28187.0,0.17022]
[1680645088520,0.04875694,28187.0,28186.0,0.17022]
[1680645088737,0.04875694,28187.0,28186.0,0.186185]
[1680645089193,0.04875694,28187.0,28186.0,0.17022]
[1680645089411,0.04875694,28187.0,28186.0,0.186185]
[1680645089613,0.06875694,28187.0,28186.0,0.187185]
[1680645090308,0.06875694,28187.0,28186.0,0.189485]
[1680645094694,0.00042124,28189.0,28187.0,0.28149044]
[1680645094912,0.6727,28191.0,28187.0,0.28149044]
[1680645095129,0.94714964,28191.0,28187.0,0.59360725]
[1680645095341,0.67312124,28191.0,28187.0,0.59360725]
[1680645095562,0.41927849,28190.0,28189.0,0.0023]
[1680645095799,0.41969973,28190.0,28189.0,0.0023]
[1680645096182,0.41969973,28190.0,28189.0,0.018263]
[1680645097158,0.04699973,28190.0,28189.0,0.018263]
[1680645097386,0.05257849,28190.0,28189.0,0.017963]
[1680645098649,0.05257849,28190.0,28189.0,0.188183]
[1680645099600,0.05257849,28190.0,28189.0,0.02054183]
[1680645099793,0.05257849,28190.0,28189.0,0.17022]
[1680645100452,0.05257849,28190.0,28189.0,0.186183]
[1680645104786,0.05257849,28190.0,28189.0,0.27095924]
[1680645107315,0.05257849,28190.0,28189.0,0.48272223]
[1680645109438,0.05257849,28190.0,28189.0,0.70327196]
[1680645110090,0.05257849,28190.0,28189.0,0.74560694]
[1680645110551,0.05257849,28190.0,28189.0,0.53388361]
[1680645111838,0.05257849,28190.0,28189.0,0.9159416]
[1680645112074,0.05257849,28190.0,28189.0,0.70368716]
[1680645112297,0.05257849,28190.0,28189.0,0.53388361]
[1680645115386,0.05257849,28190.0,28189.0,0.53370361]
[1680645115836,0.05257849,28190.0,28189.0,0.53388361]
[1680645119631,0.05257849,28190.0,28189.0,0.53370361]
[1680645119833,0.05257849,28190.0,28189.0,0.53382361]
[1680645120043,0.05257849,28190.0,28189.0,0.53388361]
[1680645120886,0.05257849,28190.0,28189.0,0.78797058]
[1680645121546,0.05251512,28190.0,28189.0,0.78785058]
[1680645121748,0.05251512,28190.0,28189.0,0.78779058]
[1680645122146,0.05251512,28190.0,28189.0,0.53376361]
[1680645122810,0.05251512,28190.0,28189.0,0.51780061]
[1680645123031,0.05251512,28190.0,28189.0,0.77182758]
[1680645123467,0.05251512,28190.0,28189.0,0.51780061]
[1680645124519,0.05251512,28190.0,28189.0,0.17022]
[1680645125432,0.05251512,28190.0,28189.0,0.1701221]
[1680645125658,0.05251512,28190.0,28189.0,0.27022]
[1680645125866,0.05251512,28190.0,28189.0,0.17022]
[1680645128829,0.05251512,28190.0,28189.0,0.27022]
[1680645129633,0.05251512,28190.0,28189.0,0.17022]
[1680645131783,0.05251512,28190.0,28189.0,0.77992]
[1680645135767,0.05251512,28190.0,28189.0,0.77986]
[1680645139168,0.05251512,28190.0,28189.0,0.99238523]
[1680645140794,0.05251512,28190.0,28189.0,0.94989201]
[1680645141527,0.05251512,28190.0,28189.0,0.90739089]
[1680645141738,0.05251512,28190.0,28189.0,1.0774229]
[1680645141950,0.05293636,28190.0,28189.0,0.90739089]
[1680645142386,0.05293636,28190.0,28189.0,0.99239779]
[1680645142597,0.05293636,28190.0,28189.0,0.8648669]
[1680645142811,0.10672236,28190.0,28189.0,0.8649269]
[1680645143711,0.10672236,28190.0,28189.0,0.77992]
[1680645144678,0.47942236,28190.0,28189.0,0.77992]
[1680645146403,0.57942236,28190.0,28189.0,0.77992]
[1680645146620,0.56691082,28190.0,28189.0,0.77992]
[1680645148272,0.84093922,28190.0,28189.0,0.77371508]
[1680645148491,1.05345076,28190.0,28189.0,0.59729708]
[1680645149140,1.05345076,28190.0,28189.0,0.76751708]
[1680645149355,1.05345076,28190.0,28189.0,0.59729708]
[1680645149787,1.05345076,28190.0,28189.0,0.76751708]
[1680645149999,1.05345076,28190.0,28189.0,0.59729708]
[1680645150506,1.16834206,28190.0,28189.0,0.76751708]
[1680645150731,1.16834206,28190.0,28188.0,0.1704]
[1680645150952,0.429741,28189.0,28187.0,0.17022]
[1680645151180,0.426897,28188.0,28186.0,0.00018]
[1680645151405,0.048986,28187.0,28185.0,0.0851869]
[1680645151625,0.048986,28187.0,28186.0,0.17022]
[1680645151841,0.048986,28187.0,28186.0,0.1704]
[1680645152057,0.048986,28187.0,28186.0,0.7325]
[1680645152249,0.3727,28188.0,28186.0,0.7325]
[1680645152495,0.021,28187.0,28186.0,0.7325]
[1680645152693,0.021,28187.0,28186.0,0.56228]
[1680645153130,0.021,28187.0,28186.0,0.7325]
[1680645155797,0.021,28187.0,28186.0,0.73232]
[1680645156385,0.021,28187.0,28186.0,0.7325]
[1680645157877,0.021,28187.0,28186.0,0.73232]
[1680645158292,0.021,28187.0,28186.0,0.7325]
[1680645163727,0.08091316,28187.0,28186.0,0.7325]
[1680645164789,0.05991316,28187.0,28186.0,0.7325]
[1680645166661,0.08391316,28187.0,28186.0,0.7335]
[1680645167103,0.08391316,28187.0,28186.0,0.73332]
[1680645167319,0.08391316,28187.0,28186.0,0.7335]
[1680645171057,0.13516316,28187.0,28186.0,0.7335]
[1680645171274,0.08391316,28187.0,28186.0,0.7335]
[1680645174898,0.08391316,28187.0,28186.0,0.1714]
[1680645175115,0.08391316,28187.0,28186.0,0.17122]
[1680645175544,0.08391316,28187.0,28186.0,0.001]
[1680645175768,0.08391316,28187.0,28186.0,0.17122]
[1680645176238,0.08391316,28187.0,28186.0,0.001]
[1680645176434,0.08391316,28187.0,28186.0,0.17122]
[1680645176677,0.08391316,28187.0,28186.0,0.001]
[1680645176897,0.08391316,28187.0,28186.0,0.17122]
[1680645177326,0.08391316,28187.0,28186.0,0.001]
[1680645177541,0.08391316,28187.0,28186.0,0.17122]
[1680645177757,0.08391316,28187.0,28186.0,0.001]
[1680645177997,0.08391316,28187.0,28186.0,0.17122]
[1680645178221,0.08391316,28187.0,28186.0,0.001]
[1680645178444,0.08391316,28187.0,28186.0,0.17122]
[1680645178664,0.08391316,28187.0,28186.0,0.001]
[1680645178872,0.1296166,28187.0,28186.0,0.46512]
[1680645179091,0.1836286,28187.0,28186.0,0.29508]
[1680645179310,0.13814416,28187.0,28186.0,0.4653]
[1680645179986,0.13814416,28187.0,28186.0,0.1714]
[1680645180205,0.13814416,28187.0,28186.0,0.17122]
[1680645180637,0.13814416,28187.0,28186.0,0.001]
[1680645181327,0.14722877,28187.0,28186.0,0.001]
[1680645182697,0.51992877,28187.0,28186.0,0.001]
[1680645182915,0.81992877,28187.0,28186.0,0.001]
[1680645185367,1.09433473,28187.0,28186.0,0.001]
[1680645185592,1.41740873,28187.0,28186.0,0.00088132]
[1680645186047,1.39970033,28187.0,28186.0,0.00088132]
[1680645186263,1.39970033,28187.0,28180.0,0.17028]
[1680645186264,1.5993496,28187.0,28180.0,0.17028]
[1680645186553,1.5993496,28187.0,28179.0,0.00018]
[1680645186554,0.3727,28181.0,28179.0,0.00018]
[1680645186776,0.3727,28179.0,28178.0,0.00018]